[Event "Bijnor Open 2024"]
[Site "Bijnor"]
[Date "2024.03.19"]
[Round "5.2"]
[White "Neelash Saha"]
[Black "Vatsal Singla"]
[Result "1-0"]
[ECO "A11"]
[WhiteElo "2463"]
[BlackElo "1795"]
[Annotator "TA"]
[PlyCount "85"]
[EventDate "2024.03.17"]
[EventCountry "IND"]
[SourceTitle "playchess.com"]
[Source "ChessBase"]
[SourceQuality "1"]
[TimeControl "5400+30"]

{[%evp 9,85,10,17,10,29,26,31,36,25,19,25,19,17,14,22,15,26,19,26,31,31,26,35,33,87,95,94,75,89,55,100,107,175,88,139,122,103,110,149,160,173,170,185,172,174,122,122,122,198,197,234,175,338,347,383,387,529,518,513,518,834,816,844,543,782,530,625,581,812,818,964,976,952,968,976,964,980,918]} 1. Nf3 {[%emt 0:00:05]} d5 {[%emt 0:02:35]} 2. e3 {[%emt 0:00:27]} c6 {[%emt 0:04:15]} 3. c4 {[%emt 0:00:07]} Nf6 {[%emt 0:00:09]} 4. Qc2 {[%emt 0:00:05]} e6 {[%emt 0:06:18]} 5. b3 {[%emt 0:00:06]} Nbd7 {[%emt 0:00:17]} 6. Bb2 {[%emt 0:00:05]} Bd6 {[%emt 0:00:05]} 7. d4 {[%emt 0:00:12]} Qc7 {[%emt 0:05:39]} 8. Nbd2 {[%emt 0:00:52] White is slightly better.} b6 {[%emt 0:00:37]} 9. Rc1 {[%emt 0:02:51]} (9. g4 {is more complex.} Bb4 10. g5 Ne4 11. a3) 9... Bb7 {[%emt 0:00:17]} 10. a3 {[%emt 0:01:38]} a5 {[%emt 0:05:40]} 11. Bd3 {[%emt 0:00:27]} h6 {[%emt 0:01:14]} 12. O-O {[%emt 0:02:05]} O-O {[%emt 0:03:50]} 13. Qb1 {[%emt 0:01:06]} c5 {[%emt 0:09:29]} 14. cxd5 {[%emt 0:01:35]} exd5 {[%emt 0:00:57]} 15. Rfd1 {[%emt 0:01:02]} Rac8 {[%emt 0:03:12]} 16. Nf1 {[%emt 0:01:20]} Ne4 {[%emt 0:10:02]} ({Black should play} 16... Bc6 $14) 17. dxc5 $16 {[%emt 0:00:38]} bxc5 {[%emt 0:01:28]} 18. Bxe4 {[%emt 0:00:06]} dxe4 {[%emt 0:00:05]} 19. N3d2 {[%emt 0:00:02] White is more active.} Nb6 {[%emt 0:14:04]} 20. Nxe4 {[%emt 0:01:18]} Be7 {[%emt 0:00:11]} (20... Rfd8 $16) 21. Neg3 {[%emt 0:00:38]} (21. Nxc5 $18 {[%cal Oc5e6] Black must now prevent Ne6!} Ba8 (21... Bxc5 $2 {too greedy.} 22. b4 $18) 22. b4) 21... g6 {[%emt 0:02:24]} (21... Rfe8 $142) 22. Qc2 {[%emt 0:02:15]} Qc6 {[%emt 0:05:08][%csl Gb7][%cal Rc6g2] [#]} 23. f3 $40 {[%emt 0:04:06][%mdl 128] White goes for the king.} Qe6 {[%emt 0:00:16]} 24. Ne2 {[%emt 0:04:20]} Bf6 {[%emt 0:05:59]} 25. Nf4 {[%emt 0:01:05]} Qe7 {[%emt 0:00:01]} 26. Bxf6 {[%emt 0:00:45]} Qxf6 {[%emt 0:00:02]} 27. Qc3 {[%emt 0:00:41]} ({Better is} 27. Qd3 $18) 27... Qxc3 {[%emt 0:00:52]} 28. Rxc3 {[%emt 0:00:05] Rd6 would now be deadly.} Rc7 {[%emt 0:04:08]} (28... c4 $16 {was necessary.} 29. e4 Ba8 30. bxc4 Rxc4) 29. e4 $18 {[%emt 0:02:53]} a4 {[%emt 0:02:22]} 30. Ne3 {[%emt 0:01:06]} Kg7 $2 {[%emt 0:01:47]} (30... axb3 31. Rxb3 Na4) 31. Rd6 {[%emt 0:00:19]} Nc8 {[%emt 0:00:44] [#]} 32. Rxg6+ {[%emt 0:00:15][%mdl 512]} Kh7 {[%emt 0:00:33]} (32... fxg6 33. Ne6+) 33. Rf6 {[%emt 0:00:07] White is clearly winning.} axb3 {[%emt 0:01:44]} 34. Rxb3 {[%emt 0:00:10]} Rd8 {[%emt 0:01:21]} (34... c4 $142 35. Rc3 Kg8 36. Rxc4 Rxc4 37. Nxc4 Rd8) 35. Nf5 {[%emt 0:00:33]} c4 {[%emt 0:01:51]} 36. Rxh6+ {[%emt 0:00:08]} Kg8 {[%emt 0:00:04]} 37. Rc3 {[%emt 0:00:12] Hoping for Nh5.} Rd1+ {[%emt 0:01:48]} 38. Kf2 {[%emt 0:00:06] aiming for Nh5.} Rb1 {[%emt 0:00:05]} 39. Nh5 {[%emt 0:00:13] Threatening mate with Nf6+.} Rb2+ {[%emt 0:00:15]} 40. Kg3 {[%emt 0:00:07] White wants to mate with Nf6+.} Rb6 {[%emt 0:00:41]} 41. Nf6+ {[%emt 0:00:13]} Rxf6 {[%emt 0:00:09]} 42. Rxf6 {[%emt 0:00:03]} Na7 {[%emt 0:00:08]} 43. Ne3 {[%emt 0:00:27] Weighted Error Value: White=0.22 (precise) /Black=0.37.  Mistake:       	White=2     	Black=6      Inaccurate:     	White=1     	Black=4      OK:         	White=15    	Black=6      Best:        	---       	Black=1      Brilliant:      	White=1     	---} 1-0

[Event "Bijnor Open 2024"]
[Site "Bijnor"]
[Date "2024.03.19"]
[Round "5.2"]
[White "Balkishan, A.."]
[Black "Vatsal Singla"]
[Result "*"]
[ECO "D17"]
[WhiteElo "2108"]
[BlackElo "1795"]
[Annotator "RC"]
[PlyCount "27"]
[EventDate "2024.03.17"]
[EventCountry "IND"]
[SourceTitle "playchess.com"]
[Source "ChessBase"]
[SourceQuality "1"]
[TimeControl "5400+30"]

1. d4 {[%emt 0:02:19]} d5 {[%emt 0:00:19]} 2. c4 {[%emt 0:00:13]} c6 {[%emt 0:00:11]} 3. Nc3 {[%emt 0:00:05]} Nf6 {[%emt 0:00:07]} 4. Nf3 {[%emt 0:02:09]} dxc4 {[%emt 0:00:12]} 5. a4 {[%emt 0:00:03]} Bf5 {[%emt 0:01:31]} 6. Ne5 {[%emt 0:00:06]} Nbd7 {[%emt 0:00:10]} 7. Nxc4 {[%emt 0:00:04]} Qc7 {[%emt 0:00:08]} 8. g3 {[%emt 0:02:29]} e5 {[%emt 0:00:55]} 9. dxe5 {[%emt 0:03:25]} Nxe5 {[%emt 0:00:08]} 10. Bf4 {[%emt 0:02:07]} Nfd7 {[%emt 0:02:09]} 11. Nxe5 {[%emt 0:02:48]} Nxe5 {[%emt 0:00:36]} 12. Bg2 {[%emt 0:01:15]} Rd8 {[%emt 0:14:47]} 13. Qb3 {[%emt 0:00:42]} Bd6 {[%emt 0:20:42]} 14. O-O {[%emt 0:01:03]} *

[Event "Bijnor Open 2024"]
[Site "Bijnor"]
[Date "2024.03.19"]
[Round "5.3"]
[White "Singh, Arvinder Preet"]
[Black "Laxman, R.R."]
[Result "1/2-1/2"]
[ECO "C67"]
[WhiteElo "2030"]
[BlackElo "2331"]
[Annotator "TA"]
[PlyCount "120"]
[EventDate "2024.03.17"]
[EventCountry "IND"]
[SourceTitle "playchess.com"]
[Source "ChessBase"]
[SourceQuality "1"]
[TimeControl "5400+30"]

{[%evp 17,120,18,35,13,0,0,0,-44,-44,-41,-37,-34,-42,-35,-34,-42,-33,-40,-48,-39,-48,-60,-49,-50,-44,-55,-77,-71,-19,-29,0,-12,-8,-8,-8,-8,-16,-10,-8,-8,-8,-16,0,-13,-12,-13,34,-8,0,0,0,0,0,0,0,0,0,0,0,-8,-8,-8,-8,-8,-8,-8,-8,-10,-8,-8,-8,-8,-8,-8,-8,-8,-8,-8,-8,-8,0,-8,-8,-8,-8,-8,-8,-8,-8,-8,-8,-8,-8,-8,-8,-8,-8,-8,-8,-8,-8,-8,-8,-8,-8]} 1. e4 {[%emt 0:00:04]} e5 {[%emt 0:00:05]} 2. Nf3 {[%emt 0:00:09]} Nc6 {[%emt 0:00:04]} 3. Bb5 {[%emt 0:00:12]} Nf6 {[%emt 0:01:32]} 4. O-O {[%emt 0:00:16]} Nxe4 {[%emt 0:00:03]} 5. d4 {[%emt 0:00:08]} Nd6 {[%emt 0:00:07]} 6. Bxc6 {[%emt 0:00:05]} dxc6 {[%emt 0:00:05]} 7. dxe5 {[%emt 0:00:06]} Nf5 {[%emt 0:00:05]} 8. Qxd8+ {[%emt 0:00:08]} Kxd8 {[%emt 0:00:02]} 9. Nc3 {[%emt 0:00:23]} a5 {[%emt 0:00:27]} 10. Bg5+ {[%emt 0:03:56]} Ke8 {[%emt 0:00:53]} 11. Rad1 {[%emt 0:00:29][%csl Gg5][%cal Rd1d8]} Be6 {[%emt 0:00:25]} 12. Nd4 {[%emt 0:07:42]} Nxd4 {[%emt 0:01:08]} 13. Rxd4 {[%emt 0:00:03]} Be7 {[%emt 0:01:35]} 14. Bxe7 {[%emt 0:06:53]} Kxe7 {[%emt 0:00:11]} 15. Rfd1 {[%emt 0:01:25]} Rhd8 {[%emt 0:00:20]} 16. g4 {[%emt 0:11:54] Verhindert Bf5.} b5 {[%emt 0:04:25][%cal Bb7b5,Bb5b4][%mdl 32]} 17. a3 {[%emt 0:02:00] [#]} b4 $1 {[%emt 0:00:07]} 18. Na4 {[%emt 0:10:22] [#]} (18. axb4 axb4 19. Rxd8 (19. Rxb4 $2 Rxd1+ 20. Nxd1 Ra1 $19) 19... Rxd8 20. Rxd8 Kxd8 $19) (18. Rxd8 Rxd8) 18... Bxg4 $1 {[%emt 0:01:06]} 19. Rxd8 {[%emt 0:00:04]} Rxd8 {[%emt 0:00:03]} 20. Rxd8 {[%emt 0:00:06]} Kxd8 $15 {[%emt 0:00:05][%mdl 4096] Endspiel. KB-KN} 21. Nc5 {[%emt 0:00:03]} bxa3 {[%emt 0:07:09]} 22. bxa3 {[%emt 0:00:02]} g5 {[%emt 0:01:11]} ({Günstiger ist} 22... Ke7 $17 23. f4 h6) 23. Kf1 $11 {[%emt 0:06:49]} Bf5 {[%emt 0:06:11]} 24. c3 {[%emt 0:00:02]} Ke7 {[%emt 0:00:09]} 25. Ke2 {[%emt 0:00:22]} f6 {[%emt 0:00:14]} 26. exf6+ {[%emt 0:00:04]} Kxf6 {[%emt 0:00:04]} 27. Nb7 {[%emt 0:00:21]} Ke5 {[%emt 0:00:39] Und ...a4 würde nun gewinnen.} 28. Nxa5 {[%emt 0:00:59]} Kd5 {[%emt 0:00:07]} 29. Ke3 {[%emt 0:20:17]} Kc5 {[%emt 0:00:14]} 30. Nb3+ {[%emt 0:05:38]} Kc4 {[%emt 0:00:13]} 31. Nd4 {[%emt 0:00:05]} Bd7 {[%emt 0:02:42]} (31... Bc8 $11 {kam in Betracht.}) 32. Kd2 {[%emt 0:00:10]} g4 {[%emt 0:00:29] Gegen Nf3 gerichtet. Die Stellung ist ausgeglichen.} 33. f4 {[%emt 0:08:30]} gxf3 {[%emt 0:01:20]} 34. Nxf3 {[%emt 0:00:02] Schwarz muss nun Ne5+ beachten.} Kb3 {[%emt 0:00:09]} 35. Ne5 {[%emt 0:00:18]} Be8 {[%emt 0:00:17]} 36. Nd3 {[%emt 0:06:10]} Kxa3 {[%emt 0:00:19]} 37. Nc5 {[%emt 0:00:09]} Bg6 {[%emt 0:02:05]} 38. h4 {[%emt 0:01:27]} Kb2 {[%emt 0:00:51]} 39. Ne6 {[%emt 0:00:40]} Kb3 {[%emt 0:00:48]} 40. Nxc7 {[%emt 0:07:38]} Kc4 {[%emt 0:00:44]} 41. Na6 {[%emt 0:00:38]} c5 {[%emt 0:00:32]} 42. Nb8 {[%emt 0:01:58]} Be8 {[%emt 0:00:52]} (42... Kd5 $5 43. Nd7 $8 Bf5 44. Nb6+ Ke4 $11) 43. Na6 {[%emt 0:00:48]} Bd7 {[%emt 0:01:09]} 44. Nc7 {[%emt 0:00:38]} Bf5 {[%emt 0:00:07]} 45. Ne8 {[%emt 0:01:17]} Kd5 {[%emt 0:00:11] Lässt Nd6 nicht zu} 46. Ke3 {[%emt 0:00:26]} Ke5 {[%emt 0:00:06]} 47. Nc7 {[%emt 0:00:21]} Bd7 {[%emt 0:00:16]} 48. c4 {[%emt 0:00:51]} Kd6 {[%emt 0:00:30]} 49. Nb5+ {[%emt 0:00:27]} Bxb5 {[%emt 0:00:36]} 50. cxb5 {[%emt 0:00:01] KPP-KPP} Kc7 {[%emt 0:00:01]} 51. Kd3 {[%emt 0:01:37]} Kb6 {[%emt 0:00:03]} 52. h5 {[%emt 0:00:44]} (52. Kc4 h5 53. Kc3 Kxb5 54. Kb3 Kc6 55. Kc3 Kd5 56. Kd3 Ke5 57. Ke3 Kf5 58. Kf3 c4 59. Ke3 Kg4 60. Ke4 Kxh4 61. Kf4 c3 62. Ke3 Kg3 (62... c2 {ist ein Selbstmatt.} 63. Kd2 Kg5 64. Kxc2 h4 65. Kd2 h3 66. Ke3 h2 67. Kd4 h1=Q 68. Kc5 Qe4 69. Kb5 Kf5 70. Kb6 Qd5 71. Kc7 Ke6 72. Kb6 Kd6 73. Ka7 Kc6 74. Kb8 Qb3+ 75. Kc8 Qg8#) 63. Ke2 h4 (63... c2 {führt zum Matt.} 64. Kd2 h4 65. Kxc2 h3 66. Kd3 h2 67. Kd4 h1=Q 68. Kc5 Kf4 69. Kd6 Qe4 70. Kd7 Ke5 71. Kc7 Kd5 72. Kb6 Qh7 73. Ka5 Qb1 74. Ka4 Kc4 75. Ka5 Qb5#) 64. Kd3 h3 (64... c2 65. Kxc2 h3 66. Kd3 h2 67. Kd4 h1=Q 68. Kc5 Qe4 69. Kd6 Kf4 70. Kd7 Qc4 71. Ke7 Qc6 72. Kf7 Kf5 73. Kf8 Kf6 74. Kg8 Qg2+ 75. Kh8 Qg7#) 65. Kxc3 h2 66. Kd3 h1=Q (66... h1=R 67. Ke4 Rh5 68. Ke3 Rh4 69. Ke2 Kf4 70. Kd3 Kf3 71. Kd2 Rd4+ 72. Kc2 Ke2 73. Kc3 Rf4 74. Kb2 Kd2 75. Kb3 Rd4 76. Kb2 Rd3 77. Ka1 Kc1 78. Ka2 Rh3 79. Ka1 Ra3#) 67. Kd4 Qd1+ 68. Kc5 Kf4 69. Kc4 Ke5 70. Kc5 Qa4 71. Kb6 Kd6 72. Kb7 Qb5+ 73. Ka7 Kc7 74. Ka8 Qb8#) 52... Kxb5 {[%emt 0:00:02] ( -> ...Kb4). KPP-KP} 53. Kc3 {[%emt 0:00:02]} h6 {[%emt 0:01:25]} 54. Kb3 {[%emt 0:00:04]} Kc6 {[%emt 0:01:56]} 55. Kc4 {[%emt 0:00:22]} Kd6 {[%emt 0:00:04]} 56. Kc3 {[%emt 0:00:07]} Kd5 {[%emt 0:00:09]} (56... Ke5 $5 57. Kc4 $8 Kd6 $11) 57. Kd3 $1 {[%emt 0:00:11]} c4+ {[%emt 0:00:27]} (57... Ke5 $5 58. Kc4 $8 Kd6 $11) 58. Kc3 {[%emt 0:00:03]} Kc5 {[%emt 0:00:03]} 59. Kc2 {[%emt 0:00:14]} Kd4 {[%emt 0:00:03]} 60. Kd2 $1 {[%emt 0:00:11]} Ke5 {[%emt 0:01:05] Gewichteter Fehlerwert: Weiß=0.03 (makellos) /Schwarz=0.05 (makellos) .  Fehler:       	---       	Schwarz=2     Ungenau:       	Weiß=2     	Schwarz=1     OK:         	Weiß=26    	Schwarz=22    Bester:       	Weiß=3     	Schwarz=2     Stark:        	Weiß=2     	---} 1/2-1/2

[Event "Bijnor Open 2024"]
[Site "Bijnor"]
[Date "2024.03.19"]
[Round "5.4"]
[White "Shaurya Prabhakar"]
[Black "Sai Agni Jeevitesh, J."]
[Result "0-1"]
[ECO "C50"]
[WhiteElo "1731"]
[BlackElo "2285"]
[Annotator "RC"]
[PlyCount "82"]
[EventDate "2024.03.17"]
[EventCountry "IND"]
[SourceTitle "playchess.com"]
[Source "ChessBase"]
[SourceQuality "1"]
[TimeControl "5400+30"]

1. e4 {[%emt 0:04:19]} e5 {[%emt 0:00:17]} 2. Nf3 {[%emt 0:00:51]} Nc6 {[%emt 0:00:08]} 3. Bc4 {[%emt 0:00:59]} Nf6 {[%emt 0:00:22]} 4. d3 {[%emt 0:01:30]} Bc5 {[%emt 0:00:24]} 5. Nc3 {[%emt 0:00:07]} h6 {[%emt 0:00:23]} 6. h3 {[%emt 0:00:29]} a6 {[%emt 0:01:00]} 7. a3 {[%emt 0:01:50]} d6 {[%emt 0:00:05]} 8. Be3 {[%emt 0:00:26]} O-O {[%emt 0:03:55]} 9. Qd2 {[%emt 0:00:48]} Bxe3 {[%emt 0:00:28]} 10. fxe3 {[%emt 0:00:17]} Ne7 {[%emt 0:00:22]} 11. g4 {[%emt 0:04:56]} Nh7 {[%emt 0:09:59]} 12. Qg2 {[%emt 0:05:52]} Ng6 {[%emt 0:12:39]} 13. h4 {[%emt 0:07:58]} Be6 {[%emt 0:01:48]} 14. h5 {[%emt 0:02:32]} Nh8 {[%emt 0:00:28]} 15. Bxe6 {[%emt 0:10:23]} fxe6 {[%emt 0:00:00]} 16. O-O-O {[%emt 0:00:19]} Ng5 {[%emt 0:00:42]} 17. Nh4 {[%emt 0:01:13]} b5 {[%emt 0:02:28]} 18. Ne2 {[%emt 0:01:20]} c5 {[%emt 0:01:58]} 19. d4 {[%emt 0:08:17]} cxd4 {[%emt 0:02:15]} 20. exd4 {[%emt 0:00:07]} Qb6 {[%emt 0:00:21]} 21. Rd3 {[%emt 0:07:32]} b4 {[%emt 0:01:24]} 22. Rb3 {[%emt 0:02:51]} a5 {[%emt 0:01:09]} 23. Rd1 {[%emt 0:01:34]} Rac8 {[%emt 0:01:01]} 24. Kb1 {[%emt 0:07:20]} Rc4 {[%emt 0:04:35]} 25. c3 {[%emt 0:05:00]} Qc6 {[%emt 0:03:14]} 26. axb4 {[%emt 0:04:04]} Qa4 {[%emt 0:05:15]} 27. Nc1 {[%emt 0:01:47]} axb4 {[%emt 0:00:04]} 28. Rd3 {[%emt 0:01:13]} bxc3 {[%emt 0:01:29]} 29. bxc3 {[%emt 0:01:52]} exd4 {[%emt 0:00:20]} 30. cxd4 {[%emt 0:02:47]} Rxd4 {[%emt 0:03:57]} 31. Ra3 {[%emt 0:02:15]} Qb5+ {[%emt 0:01:32]} 32. Rdb3 {[%emt 0:01:12]} Qc6 {[%emt 0:00:21]} 33. Qb2 {[%emt 0:00:59]} Qxe4+ {[%emt 0:01:29]} 34. Ka2 {[%emt 0:00:12]} Ra4 {[%emt 0:01:20]} 35. Rxa4 {[%emt 0:03:57]} Qxa4+ {[%emt 0:00:02]} 36. Ra3 {[%emt 0:00:26]} Qc4+ {[%emt 0:00:18]} 37. Ka1 {[%emt 0:00:50]} Qxg4 {[%emt 0:01:39]} 38. Ra7 {[%emt 0:01:15]} Ngf7 {[%emt 0:00:22]} 39. Qf2 {[%emt 0:02:54]} Qxh5 {[%emt 0:00:24]} 40. Ne2 {[%emt 0:01:08]} Rb8 {[%emt 0:01:51]} 41. Nd4 {[%emt 0:01:43]} Qd1+ {[%emt 0:00:14]} 0-1

[Event "Bijnor Open 2024"]
[Site "Bijnor"]
[Date "2024.03.19"]
[Round "5.5"]
[White "Sparsh Yadav"]
[Black "Mahindrakar Indrajeet"]
[Result "1/2-1/2"]
[ECO "B22"]
[WhiteElo "1775"]
[BlackElo "2136"]
[Annotator "RC"]
[PlyCount "168"]
[EventDate "2024.03.17"]
[EventCountry "IND"]
[SourceTitle "playchess.com"]
[Source "ChessBase"]
[SourceQuality "1"]
[TimeControl "5400+30"]

1. e4 {[%emt 0:00:07]} c5 {[%emt 0:00:40]} 2. Nf3 {[%emt 0:00:17]} Nc6 {[%emt 0:01:03]} 3. c3 {[%emt 0:00:37]} Nf6 {[%emt 0:00:35]} 4. e5 {[%emt 0:00:26]} Nd5 {[%emt 0:00:15]} 5. d4 {[%emt 0:00:17]} cxd4 {[%emt 0:00:43]} 6. cxd4 {[%emt 0:00:07]} d6 {[%emt 0:01:51]} 7. Bc4 {[%emt 0:00:30]} dxe5 {[%emt 0:05:01]} 8. Nxe5 {[%emt 0:01:31]} e6 {[%emt 0:03:07]} 9. O-O {[%emt 0:02:24]} Be7 {[%emt 0:03:14]} 10. Nxc6 {[%emt 0:17:43]} bxc6 {[%emt 0:00:19]} 11. Nc3 {[%emt 0:00:22]} O-O {[%emt 0:00:57]} 12. Bxd5 {[%emt 0:02:07]} cxd5 {[%emt 0:01:49]} 13. Bf4 {[%emt 0:01:28]} Ba6 {[%emt 0:02:19]} 14. Re1 {[%emt 0:00:13]} Qd7 {[%emt 0:16:54]} 15. Rc1 {[%emt 0:02:08]} Rfc8 {[%emt 0:00:39]} 16. a3 {[%emt 0:04:36]} Rc4 {[%emt 0:06:23]} 17. Ne2 {[%emt 0:06:26]} Rxc1 {[%emt 0:23:33]} 18. Qxc1 {[%emt 0:00:51]} Rc8 {[%emt 0:05:50]} 19. Qd2 {[%emt 0:01:15]} Bxe2 {[%emt 0:10:37]} 20. Rxe2 {[%emt 0:00:51]} Qa4 {[%emt 0:01:14]} 21. h3 {[%emt 0:00:55]} h6 {[%emt 0:01:23]} 22. Qd3 {[%emt 0:02:39]} Rc4 {[%emt 0:02:56]} 23. Rd2 {[%emt 0:00:41]} Qc6 {[%emt 0:01:47]} 24. Qg3 {[%emt 0:04:21]} Kh7 {[%emt 0:05:59]} 25. Qd3+ {[%emt 0:00:27]} g6 {[%emt 0:01:08]} 26. Kh2 {[%emt 0:00:45]} a5 {[%emt 0:00:34]} 27. Qe3 {[%emt 0:00:40]} Bf8 {[%emt 0:01:26]} 28. Be5 {[%emt 0:00:20]} a4 {[%emt 0:00:46]} 29. Qf3 {[%emt 0:00:22]} f5 {[%emt 0:00:46]} 30. Re2 {[%emt 0:00:23]} Rc2 {[%emt 0:00:53]} 31. Qd3 {[%emt 0:00:17]} Rxe2 {[%emt 0:00:39]} 32. Qxe2 {[%emt 0:00:06]} Kg8 {[%emt 0:00:16]} 33. Qd2 {[%emt 0:00:37]} Bd6 {[%emt 0:00:44]} 34. Qxh6 {[%emt 0:00:32]} Bxe5+ {[%emt 0:00:05]} 35. dxe5 {[%emt 0:00:06]} Qe8 {[%emt 0:00:04]} 36. Qf4 {[%emt 0:00:50]} Qd7 {[%emt 0:01:16]} 37. Qd4 {[%emt 0:00:12]} Kg7 {[%emt 0:00:41]} 38. f4 {[%emt 0:00:19]} Qc6 {[%emt 0:00:29]} 39. Qa7+ {[%emt 0:00:15]} Kg8 {[%emt 0:00:32]} 40. Qe7 {[%emt 0:00:49]} Qc4 {[%emt 0:00:31]} 41. Qxe6+ {[%emt 0:00:21]} Kg7 {[%emt 0:00:11]} 42. Qf6+ {[%emt 0:00:13]} Kh7 {[%emt 0:00:10]} 43. Qh4+ {[%emt 0:00:15]} Kg7 {[%emt 0:00:16]} 44. e6 {[%emt 0:00:15]} Qe4 {[%emt 0:00:18]} 45. Qe7+ {[%emt 0:00:16]} Kh6 {[%emt 0:00:41]} 46. Qd6 {[%emt 0:00:33]} d4 {[%emt 0:00:52]} 47. Qb8 {[%emt 0:08:56]} Kg7 {[%emt 0:00:25]} 48. Qc7+ {[%emt 0:00:06]} Kh6 {[%emt 0:00:23]} 49. e7 {[%emt 0:00:13]} d3 {[%emt 0:00:24]} 50. Qe5 {[%emt 0:06:22]} Qxe5 {[%emt 0:00:17]} 51. fxe5 {[%emt 0:00:09]} d2 {[%emt 0:00:07]} 52. e8=Q {[%emt 0:00:26]} d1=Q {[%emt 0:00:02]} 53. Qf8+ {[%emt 0:01:37]} Kh5 {[%emt 0:01:33]} 54. Qd6 {[%emt 0:00:38]} Qe2 {[%emt 0:00:35]} 55. e6 {[%emt 0:00:18]} Qe3 {[%emt 0:00:40]} 56. e7 {[%emt 0:03:43]} f4 {[%emt 0:00:02]} 57. e8=Q {[%emt 0:02:30]} Qxe8 {[%emt 0:00:36]} 58. Qxf4 {[%emt 0:00:03]} g5 {[%emt 0:00:49]} 59. Qd6 {[%emt 0:00:43]} Qe2 {[%emt 0:00:50]} 60. Qf6 {[%emt 0:01:27]} Qd2 {[%emt 0:00:41]} 61. Qc3 {[%emt 0:00:50]} Qd6+ {[%emt 0:00:32]} 62. Qg3 {[%emt 0:00:10]} Qe7 {[%emt 0:00:34]} 63. Qg4+ {[%emt 0:00:07]} Kh6 {[%emt 0:00:05]} 64. Qg3 {[%emt 0:00:37]} Qe2 {[%emt 0:00:40]} 65. Qd6+ {[%emt 0:00:27]} Kh5 {[%emt 0:00:14]} 66. Qf6 {[%emt 0:00:17]} Qd2 {[%emt 0:00:21]} 67. Qc3 {[%emt 0:00:25]} Qf4+ {[%emt 0:00:48]} 68. Kg1 {[%emt 0:00:15]} Kh6 {[%emt 0:00:19]} 69. Qc6+ {[%emt 0:00:48]} Kh7 {[%emt 0:00:34]} 70. Qc2+ {[%emt 0:00:17]} Kh6 {[%emt 0:00:18]} 71. Qf2 {[%emt 0:00:14]} Qc1+ {[%emt 0:00:49]} 72. Kh2 {[%emt 0:00:06]} Qc7+ {[%emt 0:00:27]} 73. g3 {[%emt 0:00:10]} Qe5 {[%emt 0:00:17]} 74. Qd2 {[%emt 0:00:39]} Kg6 {[%emt 0:00:49]} 75. Qc2+ {[%emt 0:00:21]} Kh6 {[%emt 0:00:18]} 76. Kg2 {[%emt 0:01:12]} Qd5+ {[%emt 0:00:31]} 77. Kh2 {[%emt 0:00:25]} Qe5 {[%emt 0:00:16]} 78. Qf2 {[%emt 0:00:12]} Kg6 {[%emt 0:00:44]} 79. Qd2 {[%emt 0:00:18]} Kh7 {[%emt 0:00:43]} 80. Kg2 {[%emt 0:00:30]} Qe4+ {[%emt 0:00:25]} 81. Kf2 {[%emt 0:00:16]} Qf5+ {[%emt 0:00:05]} 82. Kg2 {[%emt 0:00:36]} Qe4+ {[%emt 0:00:09]} 83. Kh2 {[%emt 0:00:12]} Qe5 {[%emt 0:01:01]} 84. Qc2+ {[%emt 0:01:24]} Kh6 {[%emt 0:01:14]} 1/2-1/2

[Event "Bijnor Open 2024"]
[Site "Bijnor"]
[Date "2024.03.19"]
[Round "5.6"]
[White "Shubh Singh Saini"]
[Black "Dutta, Joydeep"]
[Result "0-1"]
[ECO "C44"]
[WhiteElo "1683"]
[BlackElo "2041"]
[Annotator "RC"]
[PlyCount "56"]
[EventDate "2024.03.17"]
[EventCountry "IND"]
[SourceTitle "playchess.com"]
[Source "ChessBase"]
[SourceQuality "1"]
[TimeControl "5400+30"]

1. e4 {[%emt 0:00:02]} e5 {[%emt 0:05:45]} 2. Nf3 {[%emt 0:00:14]} Nc6 {[%emt 0:00:10]} 3. d3 {[%emt 0:00:05]} d5 {[%emt 0:04:41]} 4. Nbd2 {[%emt 0:00:41]} f6 {[%emt 0:02:02]} 5. g3 {[%emt 0:03:22]} Nge7 {[%emt 0:00:41]} 6. Bg2 {[%emt 0:00:36]} Bg4 {[%emt 0:01:07]} 7. h3 {[%emt 0:03:41]} Be6 {[%emt 0:00:34]} 8. a3 {[%emt 0:03:37]} Qd7 {[%emt 0:08:14]} 9. b4 {[%emt 0:02:45]} d4 {[%emt 0:05:20]} 10. Nb3 {[%emt 0:08:46]} Nc8 {[%emt 0:10:03]} 11. Bd2 {[%emt 0:06:40]} a6 {[%emt 0:07:49]} 12. Rb1 {[%emt 0:03:09]} Nb6 {[%emt 0:04:05]} 13. Ng1 {[%emt 0:13:19]} Na4 {[%emt 0:01:50]} 14. Ne2 {[%emt 0:01:58]} Be7 {[%emt 0:01:58]} 15. f4 {[%emt 0:04:31]} O-O-O {[%emt 0:01:18]} 16. f5 {[%emt 0:04:35]} Bf7 {[%emt 0:00:07]} 17. h4 {[%emt 0:00:13]} Na7 {[%emt 0:00:37]} 18. Bh3 {[%emt 0:00:51]} Nb5 {[%emt 0:00:30]} 19. Qc1 {[%emt 0:02:10]} Kb8 {[%emt 0:02:51]} 20. Kf2 {[%emt 0:06:07]} Rc8 {[%emt 0:00:58]} 21. g4 {[%emt 0:01:00]} c5 {[%emt 0:01:22]} 22. Na5 {[%emt 0:07:27]} c4 {[%emt 0:05:17]} 23. dxc4 {[%emt 0:04:57]} Bxc4 {[%emt 0:00:14]} 24. Bf1 {[%emt 0:00:32]} d3 {[%emt 0:02:04]} 25. Nxc4 {[%emt 0:02:29]} Rxc4 {[%emt 0:00:04]} 26. Ng3 {[%emt 0:00:24]} Rxc2 {[%emt 0:03:35]} 27. Qe1 {[%emt 0:01:24]} Nb2 {[%emt 0:01:39]} 28. Ra1 {[%emt 0:02:06]} Nc4 {[%emt 0:00:20]} 0-1

[Event "Bijnor Open 2024"]
[Site "Bijnor"]
[Date "2024.03.19"]
[Round "5.7"]
[White "Sameer Chaudhary"]
[Black "Ram Prakash, R."]
[Result "0-1"]
[ECO "A46"]
[WhiteElo "1632"]
[BlackElo "2191"]
[Annotator "RC"]
[PlyCount "56"]
[EventDate "2024.03.17"]
[EventCountry "IND"]
[SourceTitle "playchess.com"]
[Source "ChessBase"]
[SourceQuality "1"]
[TimeControl "5400+30"]

1. Nf3 {[%emt 0:00:06]} Nf6 {[%emt 0:01:13]} 2. d4 {[%emt 0:00:28]} b5 {[%emt 0:01:46]} 3. Bf4 {[%emt 0:03:51]} Bb7 {[%emt 0:00:25]} 4. e3 {[%emt 0:00:46]} a6 {[%emt 0:00:03]} 5. Nbd2 {[%emt 0:04:48]} e6 {[%emt 0:00:29]} 6. c3 {[%emt 0:03:12]} c5 {[%emt 0:02:21]} 7. Bd3 {[%emt 0:05:35]} Be7 {[%emt 0:02:02]} 8. h3 {[%emt 0:04:12]} d5 {[%emt 0:07:20]} 9. O-O {[%emt 0:01:39]} Nbd7 {[%emt 0:02:53]} 10. a4 {[%emt 0:08:29]} c4 {[%emt 0:03:31]} 11. Bc2 {[%emt 0:03:09]} b4 {[%emt 0:00:33]} 12. cxb4 {[%emt 0:06:55]} Bxb4 {[%emt 0:00:08]} 13. Qe2 {[%emt 0:05:39]} a5 {[%emt 0:08:09]} 14. Nb1 {[%emt 0:07:40]} Ne4 {[%emt 0:02:10]} 15. Bxe4 {[%emt 0:02:27]} dxe4 {[%emt 0:00:07]} 16. Nfd2 {[%emt 0:00:30]} Nb6 {[%emt 0:06:03]} 17. Rc1 {[%emt 0:05:00]} O-O {[%emt 0:01:57]} 18. Bg3 {[%emt 0:03:01]} Ba6 {[%emt 0:04:29]} 19. Nc3 {[%emt 0:02:35]} f5 {[%emt 0:01:11]} 20. Qd1 {[%emt 0:03:30]} Rc8 {[%emt 0:03:13]} 21. b3 {[%emt 0:08:24]} cxb3 {[%emt 0:13:33]} 22. Qxb3 {[%emt 0:00:18]} Qd7 {[%emt 0:00:07]} 23. Nf1 {[%emt 0:08:36]} Bc4 {[%emt 0:00:53]} 24. Qb2 {[%emt 0:00:39]} Bxf1 {[%emt 0:05:39]} 25. Kxf1 {[%emt 0:00:19]} Bxc3 {[%emt 0:00:34]} 26. Qxb6 {[%emt 0:00:15]} Bxa1 {[%emt 0:00:13]} 27. Rxa1 {[%emt 0:00:16]} Qd5 {[%emt 0:07:28]} 28. Be5 {[%emt 0:00:38]} Rf7 {[%emt 0:01:16]} 0-1